bitfinex/quotes_SOLUSD_20230904
["timestamp","ask_amount","ask_price","bid_price","bid_amount"]
[1693847103383,34.013,19.404,19.395,65.207]
[1693847103683,90.702,19.404,19.395,57.412]
[1693847103871,90.702,19.404,19.395,2.412]
[1693847104982,90.702,19.404,19.395,57.412]
[1693847105680,90.702,19.404,19.38,34.22]
[1693847105889,34.22,19.4,19.389,22.913]
[1693847106180,90.735,19.397,19.389,20.5]
[1693847106381,90.735,19.397,19.388,22.413]
[1693847106574,90.735,19.397,19.39,2.413]
[1693847108368,90.735,19.397,19.389,55.0]
[1693847108680,90.735,19.397,19.39,0.5]
[1693847109290,90.735,19.397,19.389,55.0]
[1693847109989,90.735,19.397,19.389,65.211]
[1693847110574,34.025,19.397,19.389,65.211]
[1693847115597,8.042,19.397,19.389,82.23]
[1693847116384,34.025,19.397,19.389,65.211]
[1693847116792,90.734,19.397,19.384,15.83350514]
[1693847117093,90.734,19.397,19.383,17.024]
[1693847117094,90.734,19.397,19.385,2.72320661]
[1693847117396,184.5765,19.397,19.385,2.72320661]
[1693847118492,184.5765,19.397,19.385,57.72320661]
[1693847118820,184.5765,19.397,19.385,55.30920661]
[1693847119003,184.5765,19.397,19.385,0.30920661]
[1693847119179,193.379,19.392,19.375,17.031]
[1693847119378,90.786,19.387,19.377,2.415]
[1693847120482,90.786,19.387,19.377,10.218]
[1693847120679,90.786,19.387,19.377,2.415]
[1693847122087,90.786,19.387,19.376,2.415]
[1693847125390,90.786,19.387,19.376,57.415]
[1693847125701,90.786,19.387,19.376,82.249]
[1693847127691,90.786,19.387,19.376,65.218]
[1693847129704,90.786,19.387,19.376,57.415]
[1693847129895,97.722,19.389,19.377,55.0]
[1693847130199,90.786,19.387,19.377,2.415]
[1693847130597,187.1448,19.387,19.375,7.803]
[1693847131602,187.1448,19.387,19.377,2.415]
[1693847133507,187.1448,19.387,19.377,10.218]
[1693847133693,187.1448,19.387,19.378,55.0]
[1693847133897,187.1448,19.387,19.379,2.414]
[1693847135407,187.1448,19.387,19.378,57.415]
[1693847137007,187.1448,19.387,19.378,65.217]
[1693847138408,8.047,19.387,19.378,82.246]
[1693847138612,8.046,19.389,19.382,10.214]
[1693847138793,8.046,19.389,19.384,2.414]
[1693847138989,8.046,19.389,19.383,55.0]
[1693847139199,34.04,19.389,19.383,2.414]
[1693847140111,8.046,19.389,19.383,2.414]
[1693847140410,8.046,19.389,19.383,10.214]
[1693847140608,8.046,19.389,19.384,55.0]
[1693847140808,8.046,19.389,19.385,2.414]
[1693847141201,8.046,19.389,19.384,57.414]
[1693847141401,34.04,19.389,19.384,57.414]
[1693847141895,34.04,19.389,19.384,2.414]
[1693847143294,8.046,19.389,19.384,2.414]
[1693847143906,25.989,19.393,19.384,10.214]
[1693847144213,8.044,19.392,19.385,55.0]
[1693847144398,8.044,19.392,19.387,2.413]
[1693847144703,8.044,19.392,19.387,57.413]
[1693847144904,34.034,19.392,19.387,55.0]
[1693847146198,34.034,19.392,19.38,82.05]
[1693847146399,90.758,19.392,19.381,55.0]
[1693847147310,90.758,19.392,19.383,10.214]
[1693847147511,90.758,19.392,19.384,55.0]
[1693847147713,90.758,19.392,19.384,57.414]
[1693847150213,34.034,19.392,19.384,65.214]
[1693847150415,8.044,19.392,19.384,65.214]
[1693847152327,34.034,19.392,19.384,65.214]
[1693847156418,34.034,19.392,19.384,57.414]
[1693847156609,34.034,19.392,19.384,2.414]
[1693847156810,34.034,19.392,19.383,55.0]
[1693847156811,34.22,19.39,19.383,55.0]
[1693847157010,34.041,19.388,19.383,55.0]
[1693847157210,34.041,19.388,19.382,2.414]
[1693847157519,34.041,19.388,19.381,2.414]
[1693847157704,8.046,19.388,19.381,10.215]
[1693847163628,96.7009,19.395,19.381,27.241]
[1693847163831,96.7009,19.395,19.382,55.0]
[1693847164120,96.7009,19.395,19.385,58.03]
[1693847164315,187.4449,19.395,19.386,2.414]
[1693847164529,187.4449,19.395,19.382,72.026]
[1693847164530,187.4449,19.395,19.385,2.414]
[1693847164724,187.4449,19.395,19.382,55.0]
[1693847164924,187.4449,19.395,19.384,2.414]
[1693847165225,187.4449,19.395,19.384,10.214]
[1693847172021,187.4449,19.395,19.384,2.414]
[1693847179121,187.4449,19.395,19.384,10.214]
[1693847181829,187.4449,19.395,19.384,2.414]
[1693847195447,34.22,19.39,19.38,2.414]
[1693847195650,34.042,19.387,19.38,2.414]
[1693847196950,34.042,19.387,19.38,10.215]
[1693847197150,34.042,19.387,19.381,55.0]
[1693847197353,34.042,19.387,19.382,2.414]
[1693847197751,34.042,19.387,19.381,2.414]
[1693847197955,90.781,19.387,19.37,34.22]
[1693847198255,90.781,19.387,19.373,2.415]
[1693847198645,91.2814,19.386,19.373,2.415]
[1693847198865,34.051,19.383,19.373,10.219]
[1693847199543,34.051,19.383,19.375,2.415]
[1693847199743,34.051,19.383,19.374,55.0]
[1693847200754,34.051,19.383,19.374,57.415]
[1693847200961,34.051,19.383,19.374,2.415]
[1693847206759,34.051,19.383,19.37,7.805]
[1693847207058,34.051,19.383,19.371,0.5]
[1693847207657,34.051,19.383,19.372,2.415]
[1693847208261,34.051,19.383,19.373,0.5]
[1693847208467,34.051,19.383,19.373,2.915]
[1693847208667,34.051,19.383,19.373,2.415]
[1693847210771,34.051,19.383,19.372,2.415]
[1693847214559,34.051,19.383,19.373,0.5]
[1693847214870,34.051,19.383,19.373,2.415]
[1693847215671,34.051,19.383,19.372,2.415]
[1693847216861,34.051,19.383,19.373,0.5]
[1693847217060,34.051,19.383,19.372,2.415]
[1693847218169,34.051,19.383,19.371,55.0]
[1693847218367,34.051,19.383,19.372,0.5]
[1693847218570,34.051,19.383,19.371,55.0]
[1693847218870,34.051,19.383,19.371,57.415]
[1693847223171,34.22,19.38,19.371,57.415]
[1693847223371,8.05,19.378,19.371,57.415]
[1693847223675,64.815,19.378,19.366,55.0]
[1693847223862,64.815,19.378,19.361,17.044]
[1693847224063,91.2474,19.377,19.364,2.416]
[1693847224274,34.067,19.374,19.364,2.416]
[1693847225776,34.067,19.374,19.364,10.224]
[1693847226074,34.067,19.374,19.366,2.416]
[1693847233085,34.067,19.374,19.365,57.416]
[1693847233783,34.067,19.374,19.365,2.416]
[1693847236787,34.067,19.374,19.363,2.416]
[1693847237782,8.052,19.374,19.363,2.416]
[1693847237984,91.2474,19.377,19.363,57.416]
[1693847238186,8.051,19.375,19.364,0.5]
[1693847238489,8.051,19.375,19.367,2.416]
[1693847241570,8.051,19.375,19.367,10.223]
[1693847241771,8.051,19.375,19.368,55.0]
[1693847241979,8.051,19.375,19.369,2.416]
[1693847242282,26.002,19.383,19.369,2.416]
[1693847242475,8.049,19.381,19.369,39.453]
[1693847242776,8.049,19.381,19.373,10.219]
[1693847243177,8.049,19.381,19.373,2.415]
[1693847247171,8.049,19.381,19.372,55.0]
[1693847247364,8.049,19.381,19.372,57.415]
[1693847248271,8.049,19.381,19.372,2.415]
[1693847262785,8.048,19.382,19.372,19.449]
[1693847262992,8.048,19.383,19.373,55.0]
[1693847263192,8.048,19.383,19.376,2.415]
[1693847263384,8.048,19.383,19.376,57.415]
[1693847263985,8.048,19.383,19.37,34.22]
[1693847264192,8.048,19.383,19.373,2.415]
[1693847267201,163.89237295,19.388,19.373,88.231]
[1693847267777,8.047,19.384,19.373,88.231]
[1693847270184,8.047,19.384,19.373,57.415]
[1693847280506,8.047,19.384,19.373,2.415]
[1693847281894,8.047,19.384,19.373,57.415]
[1693847287914,97.5166,19.388,19.373,57.415]
[1693847288097,123.5126,19.388,19.373,57.415]
[1693847288299,8.047,19.386,19.373,57.415]
[1693847288603,8.047,19.386,19.374,0.5]
[1693847288806,8.047,19.386,19.377,2.415]
[1693847289110,8.047,19.386,19.377,57.415]
[1693847292813,8.046,19.388,19.378,20.0]
[1693847293010,56.704,19.399,19.381,27.241]
[1693847293198,8.042,19.397,19.382,55.0]
[1693847293509,8.042,19.398,19.386,10.213]
[1693847293693,8.042,19.398,19.39,2.413]
[1693847293895,34.024,19.398,19.388,2.413]
[1693847303898,8.042,19.398,19.388,2.413]
[1693847304295,8.041,19.399,19.388,22.413]
[1693847304505,8.041,19.399,19.389,55.0]
[1693847304709,64.744,19.399,19.389,55.0]
[1693847305609,90.724,19.399,19.389,57.413]
[1693847308504,34.021,19.399,19.389,57.413]
[1693847308817,20.0,19.398,19.388,2.413]
[1693847309120,34.029,19.395,19.382,2.414]
[1693847309322,59.78681734,19.395,19.379,7.802]
[1693847309715,59.78681734,19.395,19.381,2.414]
[1693847310217,59.78681734,19.395,19.381,57.414]
[1693847311505,34.029,19.395,19.381,2.414]
[1693847311715,25.75781734,19.394,19.381,2.414]
[1693847312019,90.764,19.391,19.381,2.414]
[1693847313515,34.037,19.391,19.381,2.414]
[1693847313823,8.045,19.391,19.381,2.414]
[1693847314121,8.044,19.392,19.381,19.44]
[1693847314328,8.044,19.393,19.382,55.0]
[1693847314515,8.044,19.393,19.385,2.414]
[1693847314915,8.044,19.393,19.383,2.414]
[1693847318322,8.044,19.393,19.377,46.601926]
[1693847318527,8.044,19.393,19.378,20.0]
[1693847318724,8.044,19.393,19.379,0.5]
[1693847319026,8.044,19.393,19.38,10.215]
[1693847319027,34.22,19.39,19.38,10.215]
[1693847319224,82.707,19.394,19.38,10.215]
[1693847319225,8.046,19.389,19.38,10.215]
[1693847325417,8.045,19.39,19.38,10.215]
[1693847326017,8.045,19.39,19.38,44.435]
[1693847330330,8.045,19.39,19.381,0.5]
[1693847330524,8.045,19.39,19.383,2.414]
[1693847338843,25.986,19.395,19.383,2.414]
[1693847339739,8.044,19.392,19.383,2.414]
[1693847347727,8.043,19.395,19.383,2.414]
[1693847347943,105.0754,19.398,19.384,0.5]
[1693847348134,105.0754,19.398,19.388,27.231]
[1693847348446,105.0754,19.398,19.389,20.0]
[1693847348647,105.0754,19.398,19.391,2.413]
[1693847348843,41.58865797,19.405,19.391,19.431]
[1693847348844,51.73081734,19.405,19.391,19.431]
[1693847349144,4.44461036,19.404,19.391,19.431]
[1693847349644,12.48361036,19.404,19.391,19.431]
[1693847349833,38.45761036,19.404,19.391,2.413]
[1693847352241,38.45761036,19.404,19.382,56.55781734]
[1693847352242,34.22,19.4,19.382,42.78281734]
[1693847352548,34.029,19.395,19.385,2.414]
[1693847352748,8.043,19.395,19.385,2.414]
[1693847352953,8.043,19.395,19.385,22.414]
[1693847353154,8.043,19.395,19.385,43.041079]
[1693847355150,8.043,19.395,19.388,2.413]
[1693847355350,8.043,19.395,19.387,22.413]
[1693847355652,8.043,19.395,19.388,55.0]
[1693847355848,8.043,19.395,19.389,20.0]
[1693847356659,8.043,19.395,19.389,22.413]
[1693847358153,8.043,19.396,19.389,22.413]
[1693847358454,8.042,19.397,19.391,2.413]
[1693847358853,8.042,19.397,19.39,55.0]
[1693847365660,8.042,19.397,19.389,20.0]
[1693847365859,8.042,19.397,19.387,2.413]
[1693847367547,8.042,19.397,19.384,2.414]
[1693847368450,8.042,19.397,19.384,10.214]
[1693847369450,8.042,19.397,19.384,2.414]
[1693847373256,8.042,19.397,19.38,76.241]
[1693847373457,8.042,19.397,19.381,0.5]
[1693847373768,8.042,19.397,19.382,2.414]
[1693847374364,8.042,19.397,19.383,0.5]
[1693847374566,8.042,19.397,19.386,2.414]
[1693847375061,8.042,19.397,19.381,7.801]
[1693847375248,8.042,19.397,19.381,0.5]
[1693847375448,8.044,19.392,19.381,2.414]
[1693847377956,106.3383,19.392,19.381,2.414]
[1693847384861,98.2943,19.392,19.381,2.414]
[1693847385174,8.043,19.395,19.381,33.217]
[1693847385569,146.9756,19.399,19.381,33.217]
[1693847385570,8.043,19.396,19.381,33.217]
[1693847385763,8.043,19.396,19.382,0.5]
[1693847385967,8.043,19.396,19.386,10.213]
[1693847386363,8.042,19.397,19.386,10.213]
[1693847393879,91.22923013,19.406,19.39,34.22]
[1693847394186,12.48361036,19.405,19.396,10.207]
[1693847394887,12.48361036,19.405,19.397,55.0]
[1693847395088,12.48361036,19.405,19.399,2.412]
[1693847399283,12.48361036,19.405,19.397,55.0]
[1693847399491,12.48361036,19.405,19.398,2.412]
[1693847401284,12.48361036,19.405,19.397,55.0]
[1693847402683,12.48361036,19.405,19.398,2.412]
[1693847403274,12.48361036,19.405,19.393,17.015]
[1693847403478,12.48361036,19.405,19.394,55.0]
[1693847403677,12.48361036,19.405,19.395,2.412]
[1693847403883,12.48361036,19.405,19.394,2.413]
[1693847404488,115.03361036,19.405,19.393,55.0]
[1693847404981,115.03361036,19.405,19.391,2.413]
[1693847405188,140.7914277,19.405,19.389,2.413]
[1693847405579,25.75781734,19.404,19.389,2.413]
[1693847405783,34.021,19.4,19.389,2.413]
[1693847405977,8.041,19.4,19.389,2.413]
[1693847406300,8.041,19.4,19.388,44.818]
[1693847406301,8.04,19.401,19.394,2.413]
[1693847407797,8.04,19.401,19.389,7.798]
[1693847408098,4.44461036,19.4,19.391,2.413]
[1693847408279,8.042,19.398,19.391,2.413]
[1693847410685,8.041,19.399,19.391,10.21]
[1693847410999,8.041,19.4,19.395,2.412]
[1693847411180,8.041,19.4,19.392,62.796]
[1693847411377,8.041,19.4,19.393,2.413]
[1693847413298,8.04,19.401,19.393,2.413]
[1693847421903,12.48561036,19.4,19.393,2.413]
[1693847422103,8.041,19.4,19.393,2.413]
[1693847422608,8.041,19.401,19.393,2.413]
[1693847422789,4.44461036,19.4,19.393,2.413]
[1693847423302,4.44461036,19.4,19.393,57.413]
[1693847423602,8.041,19.401,19.393,57.413]
[1693847426996,8.041,19.401,19.393,2.413]
[1693847428304,4.44461036,19.4,19.393,2.413]
[1693847428601,8.042,19.399,19.393,2.413]
[1693847428897,8.042,19.399,19.392,2.413]
[1693847431715,90.653,19.402,19.392,10.21]
[1693847431893,4.44461036,19.401,19.392,10.21]
[1693847432599,12.48561036,19.401,19.392,10.21]
[1693847437005,8.041,19.401,19.392,10.21]
[1693847437714,4.44461036,19.4,19.392,10.21]
[1693847439008,8.041,19.401,19.392,10.21]
[1693847441406,98.693,19.402,19.392,10.21]
[1693847441607,4.44461036,19.401,19.392,10.21]
[1693847443115,12.48561036,19.401,19.392,10.21]
[1693847443314,8.041,19.401,19.392,10.21]
[1693847443612,34.019,19.401,19.392,2.413]
[1693847443814,4.42872082,19.4,19.392,2.413]
[1693847444113,8.041,19.399,19.392,2.413]
[1693847448314,8.041,19.4,19.392,2.413]
[1693847448616,8.04,19.401,19.392,2.413]
[1693847448822,4.44461036,19.4,19.392,2.413]
[1693847449036,8.038,19.406,19.392,33.198]
[1693847449203,4.44461036,19.405,19.392,33.198]
[1693847450321,12.48361036,19.405,19.392,33.198]
[1693847451018,4.44461036,19.408,19.392,33.198]
[1693847451213,8.039,19.405,19.392,33.198]
[1693847451521,4.44461036,19.404,19.392,33.198]
[1693847451714,12.48361036,19.404,19.392,33.198]
[1693847452314,4.44461036,19.404,19.392,33.198]
[1693847452513,12.48361036,19.404,19.392,33.198]
[1693847457521,4.44461036,19.404,19.392,33.198]
[1693847457726,4.44461036,19.405,19.393,20.0]
[1693847457922,4.44461036,19.411,19.4,34.22]
[1693847458130,4.44461036,19.411,19.403,10.203]
[1693847458324,4.44461036,19.412,19.403,10.203]
[1693847458718,12.48061036,19.412,19.403,10.203]
[1693847463227,12.48061036,19.412,19.403,2.411]
[1693847463426,12.48061036,19.412,19.4,34.22]
[1693847463627,12.48061036,19.412,19.401,55.0]
[1693847464632,12.48061036,19.412,19.401,57.412]
[1693847465223,12.48061036,19.412,19.401,55.0]
[1693847467232,12.48061036,19.412,19.401,57.412]
[1693847468722,12.48061036,19.412,19.401,2.412]
[1693847468930,34.22,19.41,19.39,49.55883444]
[1693847469235,90.202,19.404,19.393,2.413]
[1693847469529,8.041,19.4,19.393,2.413]
[1693847470535,8.041,19.401,19.393,2.413]
[1693847471129,8.041,19.401,19.393,57.413]
[1693847506139,12.48161036,19.408,19.394,0.5]
[1693847506557,12.48161036,19.408,19.398,27.217]
[1693847506743,12.48161036,19.408,19.399,55.0]
[1693847507053,12.48161036,19.408,19.401,2.412]
[1693847509078,4.44461036,19.408,19.401,2.412]
[1693847509249,4.44461036,19.411,19.401,57.412]
[1693847509558,8.035,19.414,19.401,88.183]
[1693847509761,4.44461036,19.413,19.401,88.183]
[1693847510144,12.48061036,19.413,19.401,88.183]
[1693847518766,4.44461036,19.413,19.401,88.183]
[1693847518965,8.033,19.42,19.402,78.01615704]
[1693847519267,4.44461036,19.419,19.41,34.22]
[1693847519468,4.44461036,19.419,19.412,2.41]
[1693847519668,12.47761036,19.419,19.412,2.41]
[1693847521665,4.44461036,19.419,19.412,2.41]
[1693847522061,4.44461036,19.425,19.412,33.164]
[1693847523067,4.44461036,19.426,19.412,33.164]
[1693847523268,4.44461036,19.424,19.412,2.41]
[1693847523469,8.032,19.423,19.412,2.41]
[1693847523668,4.44461036,19.422,19.412,2.41]
[1693847525061,4.44461036,19.422,19.412,57.41]
[1693847525458,8.031,19.423,19.412,57.41]
[1693847525769,12.47661036,19.422,19.412,57.41]
[1693847533478,12.47661036,19.422,19.412,2.41]
[1693847537484,12.47661036,19.422,19.412,17.65098867]
[1693847537781,12.47661036,19.422,19.413,55.0]
[1693847537980,12.47661036,19.422,19.413,57.41]
[1693847546193,4.44461036,19.422,19.413,57.41]
[1693847546382,4.44461036,19.425,19.413,57.41]
[1693847547116,24.44461036,19.429,19.413,57.41]
[1693847547295,4.44461036,19.426,19.413,57.41]
[1693847547495,12.47461036,19.426,19.413,57.41]
[1693847549205,4.44461036,19.426,19.413,57.41]
[1693847549416,8.03,19.426,19.413,57.41]
[1693847549714,4.44461036,19.425,19.413,57.41]
[1693847550012,4.44461036,19.425,19.42,34.22]
[1693847550219,4.44461036,19.43,19.421,82.185]
[1693847550413,8.029,19.429,19.421,82.185]
[1693847550719,4.44461036,19.429,19.421,82.185]
[1693847551223,4.44461036,19.433,19.421,82.185]
[1693847551401,4.44461036,19.433,19.421,112.924]
[1693847552504,4.44461036,19.432,19.421,112.924]
[1693847552706,12.47261036,19.432,19.421,112.924]
[1693847553106,4.44461036,19.432,19.421,112.924]
[1693847553302,4.44461036,19.433,19.421,112.924]
[1693847553617,4.44461036,19.436,19.421,112.924]
[1693847553918,12.46861036,19.441,19.433,2.408]
[1693847554504,12.46861036,19.441,19.432,2.408]
[1693847554908,12.46861036,19.441,19.429,2.408]
[1693847554909,34.22,19.44,19.429,2.408]
[1693847555115,8.026,19.437,19.43,2.408]
[1693847555331,4.44461036,19.439,19.43,53.612]
[1693847555523,12.46961036,19.439,19.43,53.612]
[1693847556021,12.46961036,19.439,19.43,36.628]
[1693847557107,4.44461036,19.439,19.43,36.628]
[1693847557320,4.44461036,19.442,19.43,36.628]
[1693847557715,8.024,19.441,19.43,36.628]
[1693847558022,4.44461036,19.44,19.43,36.628]
[1693847558226,8.025,19.438,19.43,36.628]
[1693847558418,4.44461036,19.437,19.43,36.628]
[1693847559234,4.44461036,19.438,19.43,36.628]
[1693847559418,8.024,19.44,19.43,36.628]
[1693847559419,4.44461036,19.439,19.43,36.628]
[1693847560227,12.46961036,19.439,19.43,36.628]
[1693847563528,4.44461036,19.439,19.43,36.628]
[1693847564420,12.46861036,19.44,19.43,36.628]
[1693847564825,12.46861036,19.44,19.43,78.10948147]
[1693847565014,12.46861036,19.44,19.43,36.628]
[1693847565632,12.46861036,19.44,19.43,51.8949753]
[1693847565820,12.46861036,19.44,19.43,36.628]
[1693847567331,11.96861036,19.44,19.43,36.628]
[1693847570225,3.94461036,19.44,19.43,36.628]
[1693847571729,11.96861036,19.44,19.43,36.628]
[1693847573142,11.46861036,19.44,19.43,36.628]
[1693847575542,11.46861036,19.44,19.43,76.9079794]
[1693847580146,11.46861036,19.44,19.433,2.408]
[1693847580325,8.024,19.44,19.433,57.408]
[1693847580522,1.28349397,19.439,19.433,57.408]
[1693847581225,8.025,19.439,19.433,57.408]
[1693847582144,8.024,19.442,19.433,57.408]
[1693847582346,2.16741207,19.441,19.433,57.408]
[1693847585243,10.19141207,19.441,19.433,57.408]
[1693847585632,2.16741207,19.441,19.433,57.408]
[1693847585834,2.53392267,19.443,19.433,57.408]
[1693847586033,3.44461036,19.445,19.433,57.408]
[1693847586343,11.46661036,19.445,19.433,57.408]
[1693847586845,3.44461036,19.445,19.433,57.408]
[1693847587032,3.44461036,19.446,19.433,57.408]
[1693847587234,11.46661036,19.446,19.433,57.408]
[1693847589041,3.44461036,19.446,19.433,57.408]
[1693847589247,11.46561036,19.449,19.44,34.22]
[1693847589540,11.46561036,19.449,19.442,2.407]
[1693847589740,11.46561036,19.449,19.441,57.407]
[1693847590254,3.44461036,19.449,19.441,74.381]
[1693847590459,8.021,19.449,19.441,57.407]
[1693847590747,3.44461036,19.448,19.441,57.407]
[1693847591152,11.46561036,19.448,19.441,57.407]
[1693847591350,3.44461036,19.448,19.441,57.407]
[1693847591556,8.021,19.447,19.441,57.407]
[1693847593148,3.44461036,19.446,19.441,57.407]
[1693847593652,3.44461036,19.45,19.441,57.407]
[1693847593852,11.46461036,19.45,19.441,57.407]
[1693847595145,11.46461036,19.45,19.441,56.604]
[1693847595358,37.37661036,19.45,19.441,56.604]
[1693847595738,11.46461036,19.45,19.441,56.604]
[1693847598749,11.46461036,19.45,19.441,1.604]
[1693847598951,11.46461036,19.45,19.436,40.22633744]
[1693847598952,45.68461036,19.45,19.436,40.22633744]
[1693847599153,20.0,19.449,19.435,1.605]
[1693847599355,90.511,19.445,19.433,1.605]
[1693847599653,3.44461036,19.444,19.435,1.605]
[1693847599855,8.023,19.443,19.435,6.791]
[1693847600157,3.44461036,19.442,19.435,6.791]
[1693847600351,11.46761036,19.444,19.435,6.791]
[1693847600855,11.46761036,19.444,19.435,1.605]
[1693847601352,3.44461036,19.444,19.435,1.605]
[1693847601543,3.44461036,19.447,19.435,1.605]
[1693847601743,3.44461036,19.447,19.435,21.605]
[1693847602345,3.44461036,19.448,19.435,21.605]
[1693847602546,3.44461036,19.45,19.435,21.605]
[1693847603146,3.44461036,19.45,19.44,34.22]
[1693847603345,179.99392806,19.454,19.443,1.604]
[1693847603346,3.44461036,19.453,19.443,1.604]
[1693847603546,8.02,19.45,19.44,34.22]
[1693847603763,3.44461036,19.449,19.44,34.22]
[1693847603954,8.021,19.447,19.44,34.22]
[1693847604156,3.44461036,19.446,19.44,34.22]
[1693847604349,8.022,19.446,19.438,34.22]
[1693847604548,3.44461036,19.445,19.439,20.0]
[1693847604766,3.44461036,19.447,19.438,1.605]
[1693847605062,11.46661036,19.447,19.436,1.605]
[1693847605261,11.46661036,19.447,19.436,26.791]
[1693847605461,3.44461036,19.447,19.437,20.0]
[1693847605762,8.021,19.448,19.437,21.605]
[1693847605944,3.44461036,19.447,19.437,25.186]
[1693847606460,3.44461036,19.449,19.438,20.0]
[1693847606650,3.44461036,19.449,19.437,1.605]
[1693847606858,33.937,19.447,19.432,41.84362139]
[1693847607059,3.44461036,19.446,19.43,34.22]
[1693847607255,11.46661036,19.446,19.433,1.605]
[1693847607962,3.44461036,19.446,19.433,1.605]
[1693847608262,8.022,19.446,19.433,1.605]
[1693847608565,3.44461036,19.445,19.433,1.605]
[1693847608767,11.46661036,19.445,19.433,1.605]
[1693847612650,11.46661036,19.445,19.431,1.605]
[1693847615655,3.44461036,19.445,19.431,1.605]
[1693847615863,8.021,19.447,19.431,21.605]
[1693847616263,3.44461036,19.446,19.431,21.605]
[1693847616461,3.44461036,19.446,19.431,42.087]
[1693847616673,11.46661036,19.446,19.431,42.087]
[1693847616969,8.022,19.446,19.431,42.087]
[1693847617268,1.1230148,19.445,19.431,42.087]
[1693847617463,9.1450148,19.445,19.431,42.087]
[1693847617964,8.022,19.445,19.431,42.087]
[1693847618174,8.022,19.445,19.431,83.98314395]
[1693847619471,1.35611919,19.445,19.431,83.98314395]
[1693847619868,2.3201039,19.449,19.431,83.98314395]
[1693847620063,8.022,19.446,19.431,83.98314395]
[1693847620371,2.3201039,19.445,19.431,83.98314395]
[1693847621873,8.021,19.448,19.431,83.98314395]
[1693847622072,1.7779579,19.447,19.431,227.43561739]
[1693847622473,9.7999579,19.447,19.431,227.43561739]
[1693847623474,1.7779579,19.447,19.431,227.43561739]
[1693847624064,1.7779579,19.447,19.431,207.43561739]
[1693847624267,2.82635117,19.448,19.431,207.43561739]
[1693847624562,2.82635117,19.448,19.436,18.109]
[1693847624764,2.82635117,19.448,19.44,1.604]
[1693847625266,8.021,19.448,19.44,1.604]
[1693847625466,2.82635117,19.447,19.44,1.604]
[1693847626474,2.82635117,19.447,19.44,35.824]
[1693847626783,11.46361036,19.454,19.44,56.297]
[1693847627074,3.44461036,19.454,19.44,56.297]
[1693847627675,11.46261036,19.454,19.44,56.297]
[1693847632368,3.44461036,19.454,19.44,56.297]
[1693847633279,3.44461036,19.458,19.441,20.0]
[1693847633583,3.44461036,19.458,19.446,18.1]